fUSD/lending_fUSD_20260519
["ID","MTS","AMOUNT","RATE_DAILY","PERIOD"]
[422627620,1779173445000,-981.0,0.00024384,2]
[422627621,1779173445000,-500.0,0.00024384,2]
[422627628,1779173445000,-981.0,0.00024384,2]
[422627623,1779173445000,-500.0,0.00024384,2]
[422627626,1779173445000,-542.1432205,0.00024384,2]
[422627624,1779173445000,-500.0,0.00024384,2]
[422627627,1779173445000,-500.0,0.00024384,2]
[422627576,1779173445000,-505.7497438,0.00024384,2]
[422627617,1779173445000,-500.0,0.00024384,2]
[422627605,1779173445000,-150.0,0.00024384,2]
[422627625,1779173445000,-981.0,0.00024384,2]
[422627600,1779173445000,-500.0,0.00024384,2]
[422627603,1779173445000,-981.0,0.00024384,2]
[422627575,1779173445000,-500.0,0.00024384,2]
[422627581,1779173445000,-500.0,0.00024384,2]
[422627584,1779173445000,-500.0,0.00024384,2]
[422627582,1779173445000,-223.24435235,0.00024384,2]
[422627583,1779173445000,-500.0,0.00024384,2]
[422627586,1779173445000,-150.0,0.00024384,2]
[422627587,1779173445000,-250.0,0.00024384,2]
[422627588,1779173445000,-172.94331382,0.00024384,2]
[422627589,1779173445000,-250.0,0.00024384,2]
[422627580,1779173445000,-150.0,0.00024384,2]
[422627585,1779173445000,-391.03894716,0.00024384,2]
[422627579,1779173445000,-500.0,0.00024384,2]
[422627591,1779173445000,-262.40959774,0.00024384,2]
[422627590,1779173445000,-250.0,0.00024384,2]
[422627598,1779173445000,-500.0,0.00024384,2]
[422627596,1779173445000,-500.0,0.00024384,2]
[422627597,1779173445000,-981.0,0.00024384,2]
[422627595,1779173445000,-981.0,0.00024384,2]
[422627599,1779173445000,-981.0,0.00024384,2]
[422627593,1779173445000,-150.0,0.00024384,2]
[422627594,1779173445000,-153.09929714,0.00024384,2]
[422627592,1779173445000,-150.0,0.00024384,2]
[422627602,1779173445000,-150.0,0.00024384,2]
[422627601,1779173445000,-150.0,0.00024384,2]
[422627657,1779173446000,-614.0,0.00024384,2]
[422627661,1779173446000,-614.0,0.00024384,2]
[422627664,1779173446000,-626.99727664,0.00024384,2]
[422627662,1779173446000,-614.0,0.00024384,2]
[422627665,1779173446000,-853.0,0.00024384,2]
[422627660,1779173446000,-981.0,0.00024384,2]
[422627659,1779173446000,-614.0,0.00024384,2]
[422627663,1779173446000,-982.02475387,0.00024384,2]
[422627654,1779173446000,-614.0,0.00024384,2]
[422627656,1779173446000,-614.0,0.00024384,2]
[422627671,1779173446000,-853.0,0.00024384,2]
[422627666,1779173446000,-500.0,0.00024384,2]
[422627670,1779173446000,-150.0,0.00024384,2]
[422627673,1779173446000,-853.0,0.00024384,2]
[422627668,1779173446000,-500.0,0.00024384,2]
[422627669,1779173446000,-408.73258878,0.00024384,2]
[422627675,1779173446000,-853.0,0.00024384,2]
[422627672,1779173446000,-237.93130686,0.00024384,2]
[422627676,1779173446000,-853.0,0.00024384,2]
[422627674,1779173446000,-853.0,0.00024384,2]
[422627658,1779173446000,-981.0,0.00024384,2]
[422627678,1779173446000,-500.0,0.00024384,2]
[422627667,1779173446000,-853.0,0.00024384,2]
[422627655,1779173446000,-981.0,0.00024384,2]
[422627652,1779173446000,-614.0,0.00024384,2]
[422627646,1779173446000,-614.0,0.00024384,2]
[422627689,1779173446000,-853.0,0.00024384,2]
[422627637,1779173446000,-614.0,0.00024384,2]
[422627633,1779173446000,-981.0,0.00024384,2]
[422627634,1779173446000,-614.0,0.00024384,2]
[422627635,1779173446000,-981.0,0.00024384,2]
[422627636,1779173446000,-614.0,0.00024384,2]
[422627631,1779173446000,-500.0,0.00024384,2]
[422627630,1779173446000,-981.0,0.00024384,2]
[422627640,1779173446000,-614.0,0.00024384,2]
[422627632,1779173446000,-373.16939014,0.00024384,2]
[422627653,1779173446000,-614.0,0.00024384,2]
[422627639,1779173446000,-614.0,0.00024384,2]
[422627645,1779173446000,-614.0,0.00024384,2]
[422627644,1779173446000,-614.0,0.00024384,2]
[422627643,1779173446000,-614.0,0.00024384,2]
[422627641,1779173446000,-614.0,0.00024384,2]
[422627642,1779173446000,-981.0,0.00024384,2]
[422627651,1779173446000,-614.0,0.00024384,2]
[422627650,1779173446000,-614.0,0.00024384,2]
[422627648,1779173446000,-981.0,0.00024384,2]
[422627649,1779173446000,-614.0,0.00024384,2]
[422627647,1779173446000,-614.0,0.00024384,2]
[422627638,1779173446000,-614.0,0.00024384,2]
[422627686,1779173446000,-430.01367919,0.00024384,2]
[422627683,1779173446000,-853.0,0.00024384,2]
[422627677,1779173446000,-853.0,0.00024384,2]
[422627709,1779173446000,-253.36594199,0.00024397,2]
[422627711,1779173446000,-1255.27,0.000245,7]
[422627712,1779173446000,-1107.19510695,0.00024636,2]
[422627710,1779173446000,-6250.0,0.00024463,7]
[422627713,1779173446000,-1000.0,0.00024658,2]
[422627714,1779173446000,-1249.34,0.00024658,2]
[422627715,1779173446000,-1017.0,0.00024658,2]
[422627717,1779173446000,-1017.0,0.00024658,2]
[422627721,1779173446000,-1017.0,0.00024658,2]
[422627722,1779173446000,-1017.0,0.00024658,2]
[422627720,1779173446000,-1017.0,0.00024658,2]
[422627732,1779173446000,-1017.0,0.00024658,2]
[422627734,1779173446000,-1017.0,0.00024658,2]
[422627724,1779173446000,-1017.0,0.00024658,2]
[422627729,1779173446000,-1017.0,0.00024658,2]
[422627726,1779173446000,-1017.0,0.00024658,2]
[422627680,1779173446000,-500.0,0.00024384,2]
[422627748,1779173446000,-1017.0,0.00024658,2]
[422627740,1779173446000,-1017.0,0.00024658,2]
[422627753,1779173446000,-1017.0,0.00024658,2]
[422627742,1779173446000,-1017.0,0.00024658,2]
[422627751,1779173446000,-1017.0,0.00024658,2]
[422627745,1779173446000,-1017.0,0.00024658,2]
[422627708,1779173446000,-152.65338466,0.00024384,2]
[422627706,1779173446000,-500.0,0.00024384,2]
[422627737,1779173446000,-1017.0,0.00024658,2]
[422627707,1779173446000,-431.63878455,0.00024384,2]
[422627705,1779173446000,-500.0,0.00024384,2]
[422627682,1779173446000,-500.0,0.00024384,2]
[422627684,1779173446000,-500.0,0.00024384,2]
[422627679,1779173446000,-853.0,0.00024384,2]
[422627688,1779173446000,-853.0,0.00024384,2]
[422627685,1779173446000,-853.0,0.00024384,2]
[422627687,1779173446000,-853.0,0.00024384,2]
[422627691,1779173446000,-853.0,0.00024384,2]
[422627690,1779173446000,-853.0,0.00024384,2]
[422627692,1779173446000,-853.0,0.00024384,2]
[422627701,1779173446000,-150.0,0.00024384,2]
[422627681,1779173446000,-853.0,0.00024384,2]
[422627697,1779173446000,-853.0,0.00024384,2]
[422627694,1779173446000,-853.0,0.00024384,2]
[422627702,1779173446000,-150.0,0.00024384,2]
[422627700,1779173446000,-150.0,0.00024384,2]
[422627693,1779173446000,-853.0,0.00024384,2]
[422627703,1779173446000,-195.14281327,0.00024384,2]
[422627699,1779173446000,-150.0,0.00024384,2]
[422627695,1779173446000,-853.0,0.00024384,2]
[422627698,1779173446000,-856.61974525,0.00024384,2]
[422627696,1779173446000,-853.0,0.00024384,2]
[422627704,1779173446000,-500.0,0.00024384,2]
[422627812,1779173447000,-483.7533538,0.00025,2]
[422627809,1779173447000,-167.00224942,0.00025,2]
[422627821,1779173447000,-546.31142798,0.00025,2]
[422627824,1779173447000,-200.0,0.00025,10]
[422627818,1779173447000,-60317.01252604,0.00025,2]
[422627815,1779173447000,-163.79799207,0.00025,2]
[422627827,1779173447000,-4568.92,0.00025041,7]
[422627804,1779173447000,-396.0,0.00025,2]
[422627833,1779173447000,-150.0,0.00025052,30]
[422627838,1779173447000,-2000.0,0.00025097,2]
[422627836,1779173447000,-1337.67162062,0.00025087,2]
[422627841,1779173447000,-2000.0,0.00025107,2]
[422627840,1779173447000,-35687.0,0.000251,2]
[422627842,1779173447000,-2000.0,0.00025117,2]
[422627796,1779173447000,-151.0,0.00024997,7]
[422627844,1779173447000,-2000.0,0.00025127,2]
[422627839,1779173447000,-300.0,0.000251,10]
[422627801,1779173447000,-1208.78312747,0.00025,2]
[422627782,1779173447000,-1255.26,0.000248,7]
[422627798,1779173447000,-542266.32909668,0.00025,2]
[422627846,1779173447000,-2000.0,0.00025137,2]
[422627757,1779173447000,-1017.0,0.00024658,2]
[422627760,1779173447000,-1017.0,0.00024658,2]
[422627763,1779173447000,-1017.0,0.00024658,2]
[422627769,1779173447000,-1017.0,0.00024658,2]
[422627772,1779173447000,-1017.0,0.00024658,2]
[422627766,1779173447000,-1017.0,0.00024658,2]
[422627775,1779173447000,-1040.5144727,0.00024658,2]
[422627778,1779173447000,-8616.93692408,0.0002478,2]
[422627784,1779173447000,-401.52011189,0.000249,2]
[422627776,1779173447000,-659.23,0.00024658,2]
[422627783,1779173447000,-2056.75463385,0.000249,2]
[422627780,1779173447000,-248.91625937,0.00024796,2]
[422627777,1779173447000,-788.74,0.00024658,2]
[422627787,1779173447000,-179.1076889,0.000249,4]
[422627790,1779173447000,-659.23,0.00024946,7]
[422627793,1779173447000,-788.74,0.00024946,7]
[422627807,1779173447000,-618.0,0.00025,2]
[422627843,1779173447000,-859.00212313,0.00025117,2]
[422627830,1779173447000,-750.0,0.00025052,2]
[422627845,1779173447000,-2000.0,0.00025127,2]
[422627867,1779173447000,-788.74,0.00025523,2]
[422627872,1779173447000,-515.34942552,0.0002563,2]
[422627875,1779173447000,-450.0,0.00025767,2]
[422627873,1779173447000,-515.34942552,0.00025639,2]
[422627876,1779173447000,-437.4,0.00025767,2]
[422627871,1779173447000,-515.34942552,0.000256,2]
[422627874,1779173447000,-1533.0,0.000257,7]
[422627877,1779173447000,-2584.59,0.00025786,2]
[422627878,1779173447000,-1981.3,0.00025786,2]
[422627879,1779173447000,-167.69,0.00025786,2]
[422627881,1779173447000,-265.482867,0.00025793,2]
[422627882,1779173447000,-265.482867,0.00025793,2]
[422627886,1779173447000,-500.0,0.00025793,2]
[422627885,1779173447000,-500.0,0.00025793,2]
[422627883,1779173447000,-151.0,0.00025793,2]
[422627884,1779173447000,-265.482867,0.00025793,2]
[422627847,1779173447000,-2000.0,0.00025137,2]
[422627870,1779173447000,-680.03294195,0.00025578,2]
[422627866,1779173447000,-659.23,0.00025523,2]
[422627880,1779173447000,-265.482867,0.00025793,2]
[422627869,1779173447000,-500.0,0.00025578,2]
[422627848,1779173447000,-659.23,0.00025234,2]
[422627868,1779173447000,-515.34942552,0.00025526,2]
[422627849,1779173447000,-788.74,0.00025234,2]
[422627852,1779173447000,-1208.78312747,0.000253,2]
[422627850,1779173447000,-515.34942552,0.0002528,2]
[422627853,1779173447000,-515.34942552,0.00025304,2]
[422627854,1779173447000,-515.34942552,0.00025343,2]
[422627855,1779173447000,-896.00772944,0.00025397,2]
[422627858,1779173447000,-1690.07,0.0002544,2]
[422627851,1779173447000,-515.34942552,0.00025286,2]
[422627860,1779173447000,-515.34942552,0.00025456,2]
[422627857,1779173447000,-515.34942552,0.00025417,2]
[422627856,1779173447000,-271.49123427,0.00025397,2]
[422627862,1779173447000,-150.0,0.00025462,2]
[422627861,1779173447000,-150.0,0.00025462,2]
[422627863,1779173447000,-515.34942552,0.00025464,2]
[422627859,1779173447000,-3450.54148812,0.00025443,2]
[422627865,1779173447000,-1436.93,0.00025522,7]
[422627864,1779173447000,-1208.78312747,0.000255,2]
[422627927,1779173448000,-500.0,0.00025793,2]
[422627926,1779173448000,-500.0,0.00025793,2]
[422627928,1779173448000,-500.0,0.00025793,2]
[422627924,1779173448000,-500.0,0.00025793,2]
[422627921,1779173448000,-500.0,0.00025793,2]
[422627919,1779173448000,-500.0,0.00025793,2]
[422627920,1779173448000,-500.0,0.00025793,2]
[422627925,1779173448000,-500.0,0.00025793,2]
[422627917,1779173448000,-500.0,0.00025793,2]
[422627937,1779173448000,-500.0,0.00025793,2]
[422627916,1779173448000,-500.0,0.00025793,2]
[422627923,1779173448000,-500.0,0.00025793,2]
[422627938,1779173448000,-500.0,0.00025793,2]
[422627939,1779173448000,-500.0,0.00025793,2]
[422627930,1779173448000,-500.0,0.00025793,2]
[422627934,1779173448000,-500.0,0.00025793,2]
[422627932,1779173448000,-500.0,0.00025793,2]
[422627933,1779173448000,-500.0,0.00025793,2]
[422627935,1779173448000,-178.495904,0.00025793,2]
[422627936,1779173448000,-500.0,0.00025793,2]
[422627940,1779173448000,-178.495904,0.00025793,2]
[422627951,1779173448000,-500.0,0.00025793,2]
[422627950,1779173448000,-500.0,0.00025793,2]
[422627941,1779173448000,-500.0,0.00025793,2]
[422627942,1779173448000,-500.0,0.00025793,2]
[422627922,1779173448000,-500.0,0.00025793,2]
[422627929,1779173448000,-500.0,0.00025793,2]
[422627918,1779173448000,-500.0,0.00025793,2]
[422627894,1779173448000,-500.0,0.00025793,2]
[422627915,1779173448000,-500.0,0.00025793,2]
[422627888,1779173448000,-500.0,0.00025793,2]
[422627887,1779173448000,-500.0,0.00025793,2]
[422627890,1779173448000,-500.0,0.00025793,2]
[422627900,1779173448000,-500.0,0.00025793,2]
[422627889,1779173448000,-500.0,0.00025793,2]
[422627901,1779173448000,-500.0,0.00025793,2]
[422627893,1779173448000,-500.0,0.00025793,2]
[422627892,1779173448000,-500.0,0.00025793,2]
[422627891,1779173448000,-500.0,0.00025793,2]
[422627947,1779173448000,-500.0,0.00025793,2]
[422627896,1779173448000,-500.0,0.00025793,2]
[422627895,1779173448000,-500.0,0.00025793,2]
[422627898,1779173448000,-500.0,0.00025793,2]
[422627899,1779173448000,-500.0,0.00025793,2]
[422627897,1779173448000,-500.0,0.00025793,2]
[422627903,1779173448000,-500.0,0.00025793,2]
[422627902,1779173448000,-500.0,0.00025793,2]
[422627904,1779173448000,-500.0,0.00025793,2]
[422627913,1779173448000,-500.0,0.00025793,2]
[422627905,1779173448000,-500.0,0.00025793,2]
[422627911,1779173448000,-500.0,0.00025793,2]
[422627906,1779173448000,-500.0,0.00025793,2]
[422627910,1779173448000,-500.0,0.00025793,2]
[422627908,1779173448000,-500.0,0.00025793,2]
[422627907,1779173448000,-500.0,0.00025793,2]
[422627909,1779173448000,-500.0,0.00025793,2]
[422627912,1779173448000,-500.0,0.00025793,2]
[422627914,1779173448000,-500.0,0.00025793,2]
[422627946,1779173448000,-178.495904,0.00025793,2]
[422627931,1779173448000,-500.0,0.00025793,2]
[422627944,1779173448000,-500.0,0.00025793,2]
[422627981,1779173448000,-151.0,0.000258,2]
[422627978,1779173448000,-1495.602432,0.000258,2]
[422627980,1779173448000,-1495.602432,0.000258,2]
[422627979,1779173448000,-1495.602432,0.000258,2]
[422627982,1779173448000,-171.180863,0.000258,2]
[422627984,1779173448000,-151.0,0.000258,2]
[422627985,1779173448000,-171.180863,0.000258,2]
[422627987,1779173448000,-171.180863,0.000258,2]
[422627991,1779173448000,-151.0,0.000258,2]
[422627990,1779173448000,-180.637725,0.000258,2]
[422627992,1779173448000,-659.23,0.00025811,7]
[422627995,1779173448000,-32056.60616414,0.0002589,5]
[422627994,1779173448000,-8305.0,0.00025872,2]
[422627996,1779173448000,-151.0,0.0002589,2]
[422627989,1779173448000,-180.637725,0.000258,2]
[422627988,1779173448000,-171.180863,0.000258,2]
[422627997,1779173448000,-151.0,0.0002589,2]
[422627993,1779173448000,-788.74,0.00025811,7]
[422627998,1779173448000,-151.0,0.0002589,2]
[422628000,1779173448000,-151.0,0.0002589,2]
[422627999,1779173448000,-151.0,0.0002589,2]
[422628002,1779173448000,-151.0,0.0002589,2]
[422628003,1779173448000,-457.771405,0.0002589,2]
[422628005,1779173448000,-457.771405,0.0002589,2]
[422628001,1779173448000,-151.0,0.0002589,2]
[422627943,1779173448000,-500.0,0.00025793,2]
[422628006,1779173448000,-457.771405,0.0002589,2]
[422627983,1779173448000,-151.0,0.000258,2]
[422627986,1779173448000,-151.0,0.000258,2]
[422628004,1779173448000,-151.0,0.0002589,2]
[422627977,1779173448000,-1495.602432,0.000258,2]
[422627975,1779173448000,-1208.78312747,0.000258,2]
[422627948,1779173448000,-500.0,0.00025793,2]
[422627945,1779173448000,-500.0,0.00025793,2]
[422627952,1779173448000,-178.495904,0.00025793,2]
[422627954,1779173448000,-500.0,0.00025793,2]
[422627956,1779173448000,-151.0,0.00025793,2]
[422627963,1779173448000,-418.80389,0.00025793,2]
[422627953,1779173448000,-500.0,0.00025793,2]
[422627955,1779173448000,-500.0,0.00025793,2]
[422627957,1779173448000,-500.0,0.00025793,2]
[422627959,1779173448000,-500.0,0.00025793,2]
[422627958,1779173448000,-500.0,0.00025793,2]
[422627962,1779173448000,-500.0,0.00025793,2]
[422627949,1779173448000,-500.0,0.00025793,2]
[422627961,1779173448000,-500.0,0.00025793,2]
[422627976,1779173448000,-5530.0,0.000258,3]
[422627972,1779173448000,-239.250699,0.00025793,2]
[422627968,1779173448000,-151.0,0.00025793,2]
[422627973,1779173448000,-239.250699,0.00025793,2]
[422627960,1779173448000,-500.0,0.00025793,2]
[422627970,1779173448000,-239.250699,0.00025793,2]
[422627969,1779173448000,-151.0,0.00025793,2]
[422627974,1779173448000,-9665.63735048,0.00025793,21]
[422627964,1779173448000,-151.0,0.00025793,2]
[422627966,1779173448000,-151.0,0.00025793,2]
[422627967,1779173448000,-151.0,0.00025793,2]
[422627965,1779173448000,-151.0,0.00025793,2]
[422627971,1779173448000,-239.250699,0.00025793,2]
[422628048,1779173449000,-1208.78312747,0.000265,2]
[422628045,1779173449000,-271.49123427,0.00026397,2]
[422628046,1779173449000,-27863.41561175,0.000264,2]
[422628044,1779173449000,-298.27728876,0.00026397,2]
[422628038,1779173449000,-1208.78312747,0.000263,2]
[422628039,1779173449000,-4761.1200883,0.00026379,2]
[422628040,1779173449000,-659.23,0.00026388,2]
[422628042,1779173449000,-188722.9859907,0.00026391,2]
[422628037,1779173449000,-1116.6,0.00026296,2]
[422628043,1779173449000,-896.00772944,0.00026397,2]
[422628041,1779173449000,-788.74,0.00026388,2]
[422628054,1779173449000,-788.74,0.00026964,2]
[422628049,1779173449000,-1690.07,0.00026614,2]
[422628055,1779173449000,-250.0,0.00027,2]
[422628056,1779173449000,-1049.41742621,0.00027,2]
[422628050,1779173449000,-659.23,0.00026676,7]
[422628051,1779173449000,-788.74,0.00026676,7]
[422628052,1779173449000,-1208.78312747,0.000268,2]
[422628053,1779173449000,-659.23,0.00026964,2]
[422628057,1779173449000,-530.0,0.00027,2]
[422628058,1779173449000,-2000.0,0.00027,2]
[422628060,1779173449000,-164.0,0.00027,7]
[422628059,1779173449000,-405.0,0.00027,7]
[422628061,1779173449000,-172.0,0.00027,7]
[422628036,1779173449000,-6806.9873686,0.0002626,2]
[422628047,1779173449000,-5530.0,0.000264,5]
[422628034,1779173449000,-1255.26,0.000262,7]
[422628021,1779173449000,-219.38264762,0.00026,2]
[422628027,1779173449000,-659.23,0.00026099,7]
[422628009,1779173449000,-151.0,0.0002589,2]
[422628007,1779173449000,-457.771405,0.0002589,2]
[422628008,1779173449000,-151.0,0.0002589,2]
[422628012,1779173449000,-625.0,0.00025892,2]
[422628013,1779173449000,-927.0,0.00025892,2]
[422628011,1779173449000,-1354.0,0.00025892,2]
[422628010,1779173449000,-3544.0,0.00025892,2]
[422628014,1779173449000,-150.0,0.00025892,2]
[422628015,1779173449000,-1270.0,0.00025892,2]
[422628017,1779173449000,-6057.0,0.00025892,2]
[422628018,1779173449000,-608.9369855,0.0002599,2]
[422628020,1779173449000,-4583.6875376,0.00026,2]
[422628016,1779173449000,-3633.0,0.00025892,2]
[422628019,1779173449000,-1320.6697525,0.00025991,10]
[422628062,1779173449000,-2575.529742,0.0002701,2]
[422628023,1779173449000,-1208.78312747,0.00026,2]
[422628024,1779173449000,-550.0,0.00026,2]
[422628026,1779173449000,-85784.4860689,0.00026088,2]
[422628022,1779173449000,-400.29843382,0.00026,20]
[422628032,1779173449000,-8616.93692408,0.0002616,2]
[422628031,1779173449000,-281949.8357864,0.00026138,2]
[422628030,1779173449000,-151.0,0.00026138,2]
[422628029,1779173449000,-44435.6888682,0.00026117,2]
[422628033,1779173449000,-165.0,0.00026196,3]
[422628028,1779173449000,-788.74,0.00026099,7]
[422628035,1779173449000,-276721.8646804,0.0002626,2]
[422628063,1779173449000,-150.0,0.00027099,4]
[422628025,1779173449000,-2031.62542897,0.00026068,2]
[422628065,1779173449000,-150.0,0.00027099,4]
[422628097,1779173449000,-1255.38,0.00027295,2]
[422628095,1779173449000,-788.74,0.00027253,2]
[422628096,1779173449000,-150.0,0.00027254,4]
[422628099,1779173449000,-1255.38,0.00027297,2]
[422628098,1779173449000,-1255.38,0.00027295,2]
[422628100,1779173449000,-1255.38,0.00027297,2]
[422628101,1779173449000,-1255.38,0.00027297,2]
[422628104,1779173449000,-1255.38,0.00027299,2]
[422628105,1779173449000,-150.0,0.00027299,4]
[422628103,1779173449000,-1255.38,0.00027299,2]
[422628106,1779173449000,-1208.78312747,0.000273,2]
[422628107,1779173449000,-150.0,0.00027306,4]
[422628093,1779173449000,-150.0,0.00027242,4]
[422628111,1779173449000,-156.7,0.00027362,13]
[422628108,1779173449000,-175.0,0.00027329,2]
[422628110,1779173449000,-156.7,0.00027362,13]
[422628112,1779173449000,-156.7,0.00027362,13]
[422628113,1779173449000,-156.7025,0.00027362,13]
[422628115,1779173449000,-150.0,0.00027385,4]
[422628114,1779173449000,-1436.93,0.00027363,7]
[422628116,1779173449000,-4170.94930463,0.0002739,2]
[422628119,1779173449000,-180.99415618,0.00027397,7]
[422628120,1779173449000,-500.0,0.00027397,2]
[422628118,1779173449000,-597.3384863,0.00027397,7]
[422628121,1779173449000,-150.0,0.00027397,2]
[422628117,1779173449000,-8239.85632476,0.0002739,2]
[422628109,1779173449000,-150.0,0.00027358,4]
[422628091,1779173449000,-150.0,0.00027151,4]
[422628064,1779173449000,-150.19263054,0.00027099,4]
[422628102,1779173449000,-1255.37,0.00027299,2]
[422628094,1779173449000,-659.23,0.00027253,2]
[422628066,1779173449000,-150.0,0.00027099,4]
[422628067,1779173449000,-150.0,0.00027099,4]
[422628077,1779173449000,-649.97,0.000271,2]
[422628068,1779173449000,-150.0,0.00027099,4]
[422628070,1779173449000,-150.0,0.00027099,4]
[422628071,1779173449000,-150.0,0.00027099,4]
[422628072,1779173449000,-150.0,0.00027099,4]
[422628076,1779173449000,-296.87,0.000271,2]
[422628074,1779173449000,-3031.67,0.000271,2]
[422628073,1779173449000,-150.0,0.00027099,4]
[422628075,1779173449000,-1208.78312747,0.000271,2]
[422628084,1779173449000,-237.0,0.00027123,2]
[422628069,1779173449000,-150.0,0.00027099,4]
[422628085,1779173449000,-3434.0,0.00027123,2]
[422628078,1779173449000,-3450.54148812,0.00027113,2]
[422628088,1779173449000,-300.0,0.00027123,2]
[422628089,1779173449000,-502.0,0.00027137,2]
[422628090,1779173449000,-2000.0,0.00027148,2]
[422628079,1779173449000,-2000.0,0.00027116,2]
[422628087,1779173449000,-269.0,0.00027123,2]
[422628081,1779173449000,-150.0,0.00027123,20]
[422628092,1779173449000,-150.0,0.00027202,4]
[422628080,1779173449000,-1910.0,0.00027116,2]
[422628083,1779173449000,-318.0,0.00027123,2]
[422628086,1779173449000,-345.58853386,0.00027123,2]
[422628082,1779173449000,-269.0,0.00027123,2]
[422628157,1779173450000,-424.213949,0.00027397,2]
[422628156,1779173450000,-563.485814,0.00027397,2]
[422628158,1779173450000,-424.213949,0.00027397,2]
[422628164,1779173450000,-424.213949,0.00027397,2]
[422628153,1779173450000,-563.485814,0.00027397,2]
[422628154,1779173450000,-563.485814,0.00027397,2]
[422628159,1779173450000,-424.213949,0.00027397,2]
[422628152,1779173450000,-169.347275,0.00027397,2]
[422628163,1779173450000,-424.213949,0.00027397,2]
[422628155,1779173450000,-563.485814,0.00027397,2]
[422628161,1779173450000,-424.213949,0.00027397,2]
[422628160,1779173450000,-424.213949,0.00027397,2]
[422628171,1779173450000,-151.0,0.00027397,2]
[422628165,1779173450000,-526.88,0.00027397,2]
[422628167,1779173450000,-24650.55,0.00027397,10]
[422628170,1779173450000,-151.0,0.00027397,2]
[422628176,1779173450000,-291.25,0.000274,7]
[422628166,1779173450000,-1249.34,0.00027397,2]
[422628168,1779173450000,-151.0,0.00027397,2]
[422628175,1779173450000,-597.3384863,0.00027397,7]
[422628172,1779173450000,-43653.32,0.00027397,10]
[422628169,1779173450000,-151.0,0.00027397,2]
[422628174,1779173450000,-30314.81,0.00027397,10]
[422628173,1779173450000,-36377.77,0.00027397,10]
[422628143,1779173450000,-1018.65,0.00027397,2]
[422628162,1779173450000,-424.213949,0.00027397,2]
[422628149,1779173450000,-169.347275,0.00027397,2]
[422628135,1779173450000,-151.0,0.00027397,2]
[422628144,1779173450000,-151.0,0.00027397,2]
[422628177,1779173450000,-245.39,0.000274,7]
[422628125,1779173450000,-153.766364,0.00027397,2]
[422628123,1779173450000,-265.482867,0.00027397,2]
[422628122,1779173450000,-265.482867,0.00027397,2]
[422628124,1779173450000,-265.482867,0.00027397,2]
[422628127,1779173450000,-178.495904,0.00027397,2]
[422628126,1779173450000,-265.482867,0.00027397,2]
[422628128,1779173450000,-178.495904,0.00027397,2]
[422628129,1779173450000,-178.495904,0.00027397,2]
[422628138,1779173450000,-239.250699,0.00027397,2]
[422628131,1779173450000,-151.0,0.00027397,2]
[422628136,1779173450000,-151.0,0.00027397,2]
[422628139,1779173450000,-239.250699,0.00027397,2]
[422628130,1779173450000,-178.495904,0.00027397,2]
[422628133,1779173450000,-151.0,0.00027397,2]
[422628132,1779173450000,-151.0,0.00027397,2]